Cogmind - Beta 17 @@@ ROGUE MODE // 2026.07.11 @ 12:00:32 Player: IsAway Result: Destroyed by G-47 Trooper with Particle Gun Performance ------------- Evolutions (0) 0 Regions Visited (1) 200 Robots Destroyed (7) 35 Value Destroyed (156) 156 Prototype IDs (0) 0 Alien Tech Used (0) 0 Bonus (0) 0 TOTAL SCORE: 391 Bonus ------- None Cogmind --------- Core Integrity 0/250 Matter 300/300 Energy 100/100 System Corruption 0% Temperature Cool (9) Movement Core (200) Ox3 Location -10/Materials Parts ------- > --- POWER (1) -------- (None) > --- PROPULSION (2) --- (None) > --- UTILITY (2) ------ Medium Storage Unit > --- WEAPON (2) ------- (None) > --- INVENTORY (10) --- Compact Wheel Small Storage Unit High-capacity Storage Unit Huge Storage Unit Improved Terrain Scanner Seismic Detector Peak State ------------ > --- POWER ------------ Ion Engine > --- PROPULSION ------- Wheel Wheel > --- UTILITY ---------- Small Storage Unit Seismic Detector > --- WEAPON ----------- EM Pulse Gun Medium Laser > --- INVENTORY -------- Compact Wheel Improved Terrain Scanner Medium Laser [Rating: 7] Favorites ----------- Power Ion Engine Engine Ion Engine Propulsion Wheel Wheel Wheel Utility Medium Storage Unit Device Seismic Detector Storage Medium Storage Unit Weapon EM Pulse Gun Energy Gun EM Pulse Gun Special Weapon Mining Laser Build | -11 -10 ------- Run | Yrd Mat Slots Evolved . | . . Power . | . . Propulsion . | . . Utility . | . . Weapon . | . . Parts Attached 12 | 9 3 Power 1 | 1 . Engine 1 | 1 . Core . | . . Reactor . | . . Propulsion 3 | 3 . Treads . | . . Leg . | . . Wheel 3 | 3 . Hover . | . . Flight . | . . Utility 4 | 2 2 Device 1 | 1 . Storage 3 | 1 2 Processor . | . . Hackware . | . . Protection . | . . Artifact . | . . Weapon 4 | 3 1 Energy Gun 3 | 3 . Energy Cannon . | . . Ballistic Gun . | . . Ballistic Cannon . | . . Launcher . | . . Special Weapon 1 | . 1 Impact Weapon . | . . Slashing Weapon . | . . Piercing Weapon . | . . Special Melee Weapon . | . . Unidentified Prototypes . | . . Parts Lost 6 | . 6 Power 1 | . 1 Propulsion 2 | . 2 Utility . | . . Weapon 3 | . 3 Highest Loss Streak 6 | . 6 To Critical Strikes . | . . Average Backups 5 | 1 6 Power . | . . Propulsion 1 | . 1 Utility 3 | . 3 Weapon . | . 1 Tool/Special . | . . Unused Backups 2 | . 2 Power . | . . Propulsion . | . . Utility 2 | . 2 Weapon . | . . Tool/Special . | . . Average Slot Usage (%) 65 | . 65 Engine 9 | . 9 Wheel 20 | . 20 Device 4 | . 4 Storage 14 | . 14 Energy Gun 11 | . 11 Special Weapon 4 | . 4 Peak Build Rating 7 | 7 7 Average Rating 5 | 5 4 On Entrance 3 | . 7 Avg Prop Armor Cover (%) . | . . Naked Turns . | . . Heaviest Build 20 | 15 20 Greatest Support 26 | 26 20 Greatest Overweight (x) 4 | . 4 Average Overweight (x) . | . . Largest Inventory Capacity 20 | 8 20 Average Capacity 9 | 7 10 Most Carried 10 | 3 10 Average Carried 5 | 1 6 Final Capacity 10 | 8 10 Final Carried 6 | 3 6 Class Distribution -------------------- 100% | Mutant Dominant Class ---------------- Mutant | -10/Materials Resources | -11 -10 ----------- Run | Yrd Mat Matter Collected 343 | 261 82 Remotely . | . . Salvage Created 298 | 128 170 Parts 13 | 6 7 Haulers Intercepted . | . . Recyclers Shooed 1 | . 1 Parts Field Recycled . | . . Retrieved Matter . | . . Parts Self-Destructed . | . . Prevented . | . . Parts Restored . | . . Kills | -11 -10 ------- Run | Yrd Mat Combat Hostiles Destroyed 4 | . 4 Guns 3 | . 3 AOE 1 | . 1 Classes Destroyed 3 | 2 1 Tunneler 2 | 2 . Recycler 1 | 1 . Grunt 4 | . 4 Best Kill Streak 2 | 2 2 Combat Bots Only 2 | . 2 Max Kills in Single Turn 2 | 2 1 Gunslinging . | . . Exploded 1 | . 1 Melee . | . . Uniques/NPCs Destroyed . | . . Combat | -11 -10 -------- Run | Yrd Mat Hostile Shots Fired 56 | . 56 Missed 16 | . 16 Hits 40 | . 40 Projectile 40 | . 40 Damage Taken 588 | 32 556 Core 261 | 16 245 Absorbed by Shields . | . . Core Remaining (%) 93 | 93 . Volleys Fired 25 | 3 22 Largest 2 | 2 2 Hottest 90 | 90 90 Shots Fired 35 | 6 29 Gun 35 | 6 29 Cannon . | . . Launcher . | . . Special . | . . Kinetic . | . . Thermal 17 | 3 14 Explosive . | . . Electromagnetic 18 | 3 15 Robot Hit Streak 6 | 4 6 Robot Miss Streak 3 | 1 3 Penetration Max . | . . Secondary Targets . | . . Shots Hit Robots 24 | 5 19 Core Hits 11 | 4 7 Critical Kills . | . . Critical Parts Destroyed . | . . Critical Strikes 1 | . 1 Corrupt 1 | . 1 Melee Attacks . | . . Impact . | . . Slashing . | . . Piercing . | . . Sneak Attacks . | . . Combat Hostiles . | . . Follow-up Attacks . | . . Damage Inflicted 395 | 110 285 Guns 289 | 49 240 Cannons . | . . Explosions 93 | 61 32 Melee . | . . Ramming 13 | . 13 Kinetic . | . . Thermal 219 | 73 146 Explosive . | . . Electromagnetic 163 | 37 126 Impact . | . . Slashing . | . . Piercing . | . . Highest Corruption . | . . Average Corruption . | . . Corruption Purged . | . . Corruption Blocked . | . . Overload Shots . | . . Overflow Damage . | . . Projectiles . | . . Explosions . | . . Melee . | . . Knockbacks . | . . Impact . | . . Kinetic . | . . Secondary . | . . Self-Inflicted Damage 75 | 33 42 Shots 2 | 1 1 Rammed 13 | . 13 Targets Rammed 13 | . 13 Kicked . | . . Crushed . | . . Highest Temperature 156 | 72 156 Average Temperature 54 | 31 59 Received Heat Transfer 285 | . 285 Siege Activations . | . . Martial Activations . | . . Shielding Activations . | . . Robots Disrupted . | . . Combat Hostiles . | . . Robots Corrupted . | . . Combat Hostiles . | . . Parts Fried . | . . Impact Corruptions . | . . Robots Melted . | . . Combat Hostiles . | . . Parts Melted . | . . Heat Transferred 520 | 137 383 Parts Sabotaged . | . . Parts Stolen . | . . Parts Stripped . | . . Power Chain Reactions 2 | 1 1 Alert | -11 -10 ------- Run | Yrd Mat Maximum Alert Level . | . . Low Security (%) 100 | 100 100 Level 1 . | . . Level 2 . | . . Level 3 . | . . Level 4 . | . . Level 5 . | . . High Security . | . . Max Security . | . . Peak Influence 58 | 10 58 Initial 3 | . 3 Average 10 | 2 12 Influence Increases 113 | 15 98 Destroy 0b10 Robot/C 80 | . 80 Destroy 0b10 Robot/NC 15 | 15 . Destroy Leader 10 | . 10 Destroy Structure 8 | . 8 Influence Decreases 113 | 10 103 Entered New Map 2 | . 2 Time Decay 81 | 10 71 Lost Part 30 | . 30 Squads Dispatched 2 | . 2 Investigation . | . . Extermination . | . . Reinforcement 2 | . 2 Assault . | . . Garrison . | . . Intercept . | . . Searches Triggered . | . . Construction Impeded . | . . Haulers Reinforced . | . . Active Scanning Responses . | . . Cargo Convoy Interrupts . | . . Stealth | -11 -10 --------- Run | Yrd Mat Distress Signals 2 | . 2 Communications Jammed . | . . Distress Signals . | . . Times Spotted 11 | . 11 Peak Tracking Total 6 | . 6 Tactical Retreats . | . . Traps | -11 -10 ------- Run | Yrd Mat Traps Triggered 3 | . 3 Indirectly . | . . Trap Hack Attempts . | . . Triggered . | . . Disarmed . | . . Reprogrammed . | . . Reused . | . . Traps Extracted . | . . Installed . | . . Triggered . | . . Machines | -11 -10 ---------- Run | Yrd Mat Machines Disabled 1 | . 1 Max in Single Turn 1 | . 1 Machines Repaired . | . . Machines Dismantled . | . . Machines Sabotaged . | . . Overloaded Fab Kills . | . . Hacking | -11 -10 --------- Run | Yrd Mat Machines Accessed 2 | . 2 Terminals 2 | . 2 Fabricators . | . . Repair Stations . | . . Recycling Units . | . . Scanalyzers . | . . Garrison Access . | . . Total Hacks 7 | . 7 Successful 1 | . 1 Failed 6 | . 6 Catastrophic 1 | . 1 Database Lockouts . | . . Manual 3 | . 3 Terminals 7 | . 7 Fabricators . | . . Repair Stations . | . . Recycling Units . | . . Scanalyzers . | . . Garrison Access . | . . Terminal Hacks 1 | . 1 Emergency Access Points 1 | . 1 Fabricator Hacks . | . . Repair Station Hacks . | . . Recycling Unit Hacks . | . . Scanalyzer . | . . Garrison Access Hacks . | . . Unauthorized Hacks . | . . Terminals . | . . Fabricators . | . . Repair Stations . | . . Recycling Units . | . . Scanalyzers . | . . Garrison Access . | . . Data Cores Recovered . | . . Used . | . . Hacking Detections 2 | . 2 Full Trace Events 1 | . 1 Feedback Events . | . . Feedback Blocked . | . . Robot Schematics Acquired . | . . Robots Built . | . . Authchips . | . . Time . | . . Total Robot Build Rating . | . . Part Schematics Acquired . | . . Parts Built . | . . Authchips . | . . Time . | . . Total Part Build Rating . | . . Part Studies Acquired . | . . Parts Repaired . | . . Time . | . . Parts Recycled . | . . Recycled Matter . | . . Retrieved Matter . | . . Retrieved Components . | . . Parts Scanalyzed . | . . Part Schematics Acquired . | . . Parts Damaged . | . . Bothacking | -11 -10 ------------ Run | Yrd Mat Used RIF Installer . | . . Robots Hacked . | . . Non-combat . | . . Combat . | . . Robot Hacks Applied . | . . Relay Couplers Released . | . . Fabnet Peak Effective % . | . . Robots Rewired . | . . Allies Hacked . | . . Hacks Repelled . | . . Allies | -11 -10 -------- Run | Yrd Mat Total Allies . | . . Largest Group . | . . Highest-Rated Group . | . . Highest-Rated Ally . | . . Total Orders . | . . Ally Attacks . | . . Total Damage . | . . Kills . | . . Allies Corrupted . | . . Allies Melted . | . . Intel | -11 -10 ------- Run | Yrd Mat Active Infowar (turns) 97 | 5 92 Seismic 97 | 5 92 Robot Analysis Total . | . . Derelict Logs Recovered . | . . Drone Launches . | . . Drone Recoveries . | . . Exploration | -11 -10 ------------- Run | Yrd Mat Turns Passed 401 | 76 325 Spaces Moved 261 | 39 222 Core 26 | 2 24 Treads . | . . Legs . | . . Wheels 235 | 37 198 Hover . | . . Flight . | . . Fastest Speed 50 | 50 80 Average Speed 91 | 83 93 Slowest Speed 250 | 100 250 Overloaded Moves . | . . Propulsion Burnouts . | . . Robots Hopped . | . . Potential Cave-ins . | . . Cave-ins Triggered . | . . Exploration Rate (%) 27 | 4 50 Regions Visited 1 Branch Regions . Pre-discovered Areas . | . . Known Exits Taken . | . . Unknown Exits Taken 1 | 1 . Scrap Searched . | . . Spaces Dug . | . . Terrain Destroyed 8 | . 8 Melee . | . . Projectile . | . . AOE 8 | . 8 Terrain Rammed . | . . Walls Destroyed . | . . Machines Disabled . | . . Actions | -11 -10 --------- Run | Yrd Mat Total 370 | 72 298 Wait 45 | 20 25 Move 260 | 38 222 Hop . | . . Pick Up 8 | 1 7 Fast Attach 9 | 8 1 Attach 6 | . 6 Detach 2 | 1 1 Swap 2 | 1 1 Drop . | . . Fire 25 | 3 22 Melee . | . . Ram 13 | . 13 Kick . | . . Crush . | . . Escape Stasis . | . . Rewire . | . . Trap . | . . Miscellaneous . | . . Route ------- -11/Scrapyard -10/Materials (discovered 3 exits: [*Mat] / [*Min x2]) History --------- Turn | Location | Event 22 | -11/Scrapyard | Discovered new exit (range 15) 77 | -11/Scrapyard | Entered Materials 153 | -10/Materials | Discovered new exit (range 6) 250 | -10/Materials | Discovered new exit (range 13) 307 | -10/Materials | Discovered new exit (range 14) 314 | -10/Materials | Build established: Mutant 379 | -10/Materials | Core integrity fell below 50% 380 | -10/Materials | Lost 6 parts (1p2n3w) 391 | -10/Materials | Core integrity fell below 20% 402 | -10/Materials | Destroyed by G-47 Trooper with Particle Gun Last Messages --------------- K-01 Serf collects debris. Ion Engine destroyed. K-01 Serf collects debris. O-16 Technician: "IFF HANDSHAKE FAILED. SECURING TERMINAL." K-01 Serf collects debris. ALERT: Hostiles spotted, dispatching reinforcements to Terminal M005. K-01 Serf collects debris. M-13 Machinist repairs G-47 Trooper. K-01 Serf collects debris. Slammed into G-47 Trooper. G-34 Mercenary destroyed. Slammed into G-47 Trooper. U-05 Engineer builds a Door. Slammed into G-47 Trooper. Destabilizing: Core damaged (-10). Slammed into G-47 Trooper. R-06 Scavenger collects Heat Sink. Slammed into G-47 Trooper. Map ----- +----------------------------------------------------+ | ?????????????????????????????????????????????????? | | ?????????????????????????????????????????????????? | | ?????????????????????????????????????????????????? | | ?????????????????????????????????????????????????? | | ?????????????????????????????????????????????????? | | ?????????????????????????????????????????????????? | | ?????????????????????????????????????????????????? | | ?????????????????????????????????????????????????? | | ?????????????????????????????????????????????????? | | ?????????????????????????????????????????????????? | | ?????????????????????????????????????????????????? | | ?????????????????????????????????????????????????? | | #????????????????????????????????????????????????? | | #????????????????????????????????????????????????? | | #????????????????????????????????????????????????? | | #????????????????????????????????????????????????? | | #???????????????? ?????????????????????????????? | | ###########?????# ?????????????????????????????? | | # #?????# ?????????????????????????????? | | #! #?????# #??########??????????????????? | | # #????## #### #??????????????????? | | # #????# ""# #??????????????????? | | #####/#######??# "# #??????????????????? | | #??# !"#%% #??????????????????? | | #??# < "?#g% #??#########???????? | | #??# !?#%@ ## ???????? | | ######### #??# ??#% + ?????????? | | ????????# #??# ??#%%%%% # ?????????? | | ????????# #???# #??####+### ???????? | | ######??# #???# ##### %! ???????? | | #??# #?### ???????? | | !#??# #?#"" ####??????????? | | " #??# #?#"T #?????????????? | | "" #??# #?#"" % ### ##?????????????? | | " #??# #?### !! ##???#??????????????? | | #??# #???# !! #???????????????????? | | ######### #???# !! +???????????????????? | | ##### #???????????????????? | | | #????????????? ???? | | ######### ######????????????? ???? | | ## ###+####???????# #?????????????????? #??? | | ?# #??????????????# #???????#+#???????# #??? | | ?# ???????????????# #???????# #???????# #??? | | ?# ???????????????# #???????# #???????# #??? | | ?? ???????????????# #??????## ##??????# #??? | | ?? ???????????????# #??????# #??????# #??? | | ?? ???????????????# #?????## #??????# #??? | | ??# #???????????????# #?????? #??????# #??? | | ??# #???????????????# #??????# #??????# #??? | | ??# #???????????????# #??????# #??????# #??? | +----------------------------------------------------+ Best States ------------- Heat Dissipation 25 Energy Generation 10 Energy Capacity 250 Matter Stores 300 Matter Capacity 300 Sight Range 16 Terrain Scan Density 10 Evasion (%) 44 Item Schematics ----------------- None Robot Schematics ------------------ None Fabricated ------------ Nothing Repaired ---------- Nothing Studied --------- None Alien Tech Used ----------------- None Achievements -------------- None Challenges ------------ None Game ------ Seed LauncherSegregatorComputer Manual? 0 Play Time 00:08:51 Cumulative 26.2 hours Start 2026.07.10 @ 20:32:04 End 2026.07.11 @ 12:00:32 Sessions 1 Manual Loads 0 Difficulty Rogue Special Mode None Game No. 36 Rogue 36 Adventurer 0 Explorer 0 Win Type - Total 0 Types 0/0/0/0/0/0/0/0/0/0 Lore% 27 Gallery% 21 Achievement% 20 Wizard Run 0 Options --------- Layout 1 ASCII 0 Keyboard 0 Movement Mouse Keybinds 0 Fullscreen 1 Font 18/SmallcapsGlow Map View 51x41 Zoom Use 0% Tactical HUD 0 Map Filters NONE Filters NONE Steam 1 RUN: 46fdf178-adb5-4ada-a20a-6ee6e1ffe80f